bitfinex/quotes_SOLUSD_20251124
["timestamp","ask_amount","ask_price","bid_price","bid_amount"]
[1763955711024,0.16104262,133.75,133.74,60.77768895]
[1763955711197,0.82104262,133.75,133.74,60.77768895]
[1763955711710,5.30502455,133.75,133.72,0.09999987]
[1763955711911,4.48398193,133.73,133.72,0.09999987]
[1763955712310,5.14398193,133.73,133.72,0.09999987]
[1763955712918,5.14398193,133.74,133.72,0.09999987]
[1763955713326,0.66,133.73,133.72,0.09999987]
[1763955715326,0.66,133.73,133.72,0.75999987]
[1763955715327,4.79986427,133.73,133.72,0.75999987]
[1763955715633,0.16104262,133.75,133.72,0.75999987]
[1763955715933,0.15401,133.73,133.72,0.09999987]
[1763955717230,0.15401,133.73,133.72,61.53768882]
[1763955717608,0.15401,133.73,133.72,60.87768882]
[1763955718719,0.81401,133.73,133.72,60.87768882]
[1763955718917,0.15401,133.73,133.72,60.87768882]
[1763955719616,0.81401,133.73,133.72,60.87768882]
[1763955720711,0.81401,133.73,133.72,0.09999987]
[1763955720712,5.29799193,133.73,133.72,0.09999987]
[1763955721014,0.81401,133.73,133.72,0.09999987]
[1763955721204,5.29799193,133.73,133.72,0.09999987]
[1763955723035,0.81401,133.73,133.72,0.09999987]
[1763955723243,5.29799193,133.73,133.72,0.09999987]
[1763955726342,0.81401,133.73,133.72,0.09999987]
[1763955727246,5.29799193,133.73,133.72,0.09999987]
[1763955727941,6.14209491,133.73,133.72,0.09999987]
[1763955728317,28.62832209,133.73,133.72,0.09999987]
[1763955729248,31.94832209,133.73,133.72,0.09999987]
[1763955730144,39.42607577,133.73,133.72,0.09999987]
[1763955730318,4.48398193,133.7,133.69,0.1]
[1763955730518,7.80398193,133.7,133.69,0.1]
[1763955730718,3.32,133.7,133.69,0.76]
[1763955730936,3.32,133.7,133.69,0.1]
[1763955731149,8.46398193,133.7,133.69,0.1]
[1763955731454,7.80398193,133.7,133.69,0.1]
[1763955731817,25.92494193,133.7,133.69,0.1]
[1763955732043,26.58494193,133.7,133.69,0.1]
[1763955735849,26.74387137,133.7,133.69,0.1]
[1763955736550,8.62291137,133.7,133.69,0.1]
[1763955737452,3.47892944,133.7,133.69,0.1]
[1763955737644,3.47892944,133.7,133.69,0.81]
[1763955738254,3.47892944,133.7,133.69,0.1]
[1763955738743,7.05007753,133.7,133.69,0.1]
[1763955738944,11.68021069,133.7,133.69,0.1]
[1763955739173,12.52431367,133.7,133.69,0.1]
[1763955740256,21.15964224,133.7,133.69,0.1]
[1763955740463,19.15964225,133.7,133.69,0.1]
[1763955740637,21.15964224,133.7,133.69,0.1]
[1763955741344,11.68021069,133.7,133.69,0.1]
[1763955741543,26.9300226,133.7,133.69,0.1]
[1763955741745,29.80117069,133.7,133.69,0.1]
[1763955742259,26.9300226,133.7,133.69,0.1]
[1763955742564,29.80117069,133.7,133.69,0.1]
[1763955742972,25.78117069,133.7,133.69,0.1]
[1763955743269,29.10117069,133.7,133.69,0.1]
[1763955743467,29.80117069,133.7,133.69,0.1]
[1763955743767,6.35007753,133.7,133.69,0.1]
[1763955744159,7.05007753,133.7,133.69,0.1]
[1763955745045,6.35007753,133.7,133.69,0.1]
[1763955745754,7.05007753,133.7,133.69,0.1]
[1763955748779,6.35007753,133.7,133.69,0.1]
[1763955750178,3.47892944,133.7,133.69,0.81]
[1763955750650,3.47892944,133.7,133.69,61.58768895]
[1763955755685,0.15892944,133.7,133.69,64.45883704]
[1763955755864,0.31176117,133.7,133.69,64.45883704]
[1763955756560,0.15283173,133.7,133.69,64.45883704]
[1763955758288,0.15283173,133.7,133.69,61.58768895]
[1763955758467,0.15283173,133.7,133.69,60.87768895]
[1763955758666,3.02397982,133.7,133.69,60.87768895]
[1763955759380,0.15283173,133.7,133.69,61.58768895]
[1763955760260,0.15283173,133.7,133.69,60.87768895]
[1763955760464,0.15283173,133.7,133.69,61.58768895]
[1763955762270,0.15283173,133.7,133.69,60.87768895]
[1763955762775,7.04397982,133.7,133.69,60.87768895]
[1763955763589,7.04397982,133.7,133.69,0.1]
[1763955765392,14.52341138,133.7,133.69,0.1]
[1763955766082,7.04397982,133.7,133.69,0.1]
[1763955766483,14.52341138,133.7,133.69,0.1]
[1763955766687,7.04397982,133.7,133.69,0.1]
[1763955767081,14.52341138,133.7,133.69,0.1]
[1763955767979,25.16493982,133.7,133.69,0.1]
[1763955769092,47.66128416,133.7,133.69,0.1]
[1763955775794,47.80932589,133.7,133.69,0.1]
[1763955776591,47.65649416,133.7,133.69,0.1]
[1763955780404,57.13592571,133.7,133.69,0.1]
[1763955780909,47.65649416,133.7,133.69,0.1]
[1763955781107,55.13592572,133.7,133.69,0.1]
[1763955787816,85.31909698,133.7,133.63,62.1]
[1763955788019,85.31909698,133.7,133.6,102.0]
[1763955788020,2.87114809,133.64,133.6,0.68]
[1763955788318,2.87114809,133.62,133.61,0.68]
[1763955788816,24.31210809,133.63,133.61,0.68]
[1763955789120,3.32,133.62,133.61,0.68]
[1763955789320,6.19114809,133.62,133.59,0.1]
[1763955789496,2.87114809,133.6,133.59,0.78]
[1763955789700,2.87114809,133.6,133.59,0.1]
[1763955789998,2.87114809,133.6,133.59,0.78]
[1763955790513,22.5081592,133.61,133.59,0.78]
[1763955790725,2.87114809,133.61,133.59,0.78]
[1763955791494,2.87114809,133.6,133.59,0.1]
[1763955791695,20.99210809,133.6,133.59,0.1]
[1763955792118,23.99319598,133.6,133.59,0.78]
[1763955792419,23.99319598,133.6,133.59,0.1]
[1763955792600,23.99319598,133.6,133.59,0.78]
[1763955792923,2.87114809,133.61,133.59,0.78]
[1763955793094,2.87114809,133.6,133.59,0.78]
[1763955794806,2.87114809,133.61,133.59,0.78]
[1763955795007,2.87114809,133.6,133.59,0.1]
[1763955795207,20.99210809,133.6,133.59,0.1]
[1763955795404,43.50195614,133.6,133.59,0.1]
[1763955795806,43.66003321,133.6,133.59,0.1]
[1763955800224,44.50413619,133.6,133.59,0.1]
[1763955800529,41.6329881,133.6,133.59,0.1]
[1763955800827,41.6329881,133.6,133.59,0.79]
[1763955800828,22.66792512,133.6,133.59,0.79]
[1763955801007,0.15807707,133.6,133.59,0.79]
[1763955802426,3.47807707,133.6,133.59,0.79]
[1763955802931,25.98623627,133.6,133.59,0.1]
[1763955803436,25.98623627,133.6,133.59,0.79]
[1763955804530,25.98623627,133.6,133.59,0.1]
[1763955805905,25.98623627,133.6,133.59,0.79]
[1763955807029,25.98623627,133.6,133.59,67.38404607]
[1763955807236,3.47807707,133.6,133.59,67.38404607]
[1763955809424,0.15807707,133.6,133.59,67.38404607]
[1763955810834,0.15807707,133.6,133.59,86.25356509]
[1763955811040,0.1437045,133.61,133.59,80.11224139]
[1763955811246,0.1437045,133.61,133.6,27.79905214]
[1763955812829,0.1437045,133.61,133.6,17.16312208]
[1763955813738,0.1437045,133.61,133.6,20.48312208]
[1763955814443,0.1437045,133.61,133.6,31.11905214]
[1763955814822,0.1437045,133.61,133.6,38.60408208]
[1763955815134,0.1437045,133.61,133.6,100.70408208]
[1763955815955,0.30044794,133.61,133.6,100.70408208]
[1763955816130,0.30044794,133.61,133.6,85.40500607]
[1763955816452,0.30044794,133.61,133.6,67.28404607]
[1763955816618,0.15674344,133.61,133.6,67.28404607]
[1763955821046,0.1574938,133.62,133.61,61.94325656]
[1763955821231,0.1574938,133.62,133.61,67.12730263]
[1763955822120,0.8374938,133.62,133.59,0.1]
[1763955825434,0.8374938,133.62,133.59,4.59404607]
[1763955825635,0.8374938,133.62,133.59,5.31404607]
[1763955825940,0.8374938,133.62,133.59,4.59404607]
[1763955826146,0.1574938,133.62,133.59,4.59404607]
[1763955826366,0.8274938,133.62,133.59,4.59404607]
[1763955826532,0.8274938,133.62,133.59,0.1]
[1763955826931,0.8274938,133.62,133.59,0.82]
[1763955827777,0.8274938,133.62,133.59,5.31404607]
[1763955828497,0.8274938,133.62,133.59,4.59404607]
[1763955829360,0.8274938,133.62,133.59,5.31404607]
[1763955829743,0.8274938,133.62,133.59,0.82]
[1763955830061,0.8274938,133.62,133.59,62.76325656]
[1763955830665,0.8274938,133.62,133.59,67.25730263]
[1763955832056,0.8274938,133.62,133.6,5.21404607]
[1763955832057,0.1574938,133.62,133.6,5.21404607]
[1763955832955,0.1574938,133.62,133.61,5.21404607]
[1763955834872,0.1574938,133.62,133.61,67.15730263]
[1763955836070,0.3189652,133.62,133.61,67.15730263]
[1763955836571,0.1614714,133.62,133.61,67.15730263]
[1763955842192,0.1614714,133.62,133.61,66.43730263]
[1763955842362,0.1614714,133.62,133.61,61.94325656]
[1763955842765,0.8314714,133.62,133.61,61.94325656]
[1763955843182,0.1614714,133.62,133.61,61.94325656]
[1763955843364,0.1614714,133.62,133.61,67.15730263]
[1763955844387,0.1614714,133.62,133.61,61.94325656]
[1763955844777,0.1614714,133.62,133.61,62.66325656]
[1763955845991,0.1614714,133.62,133.61,67.15730263]
[1763955853397,0.1614714,133.62,133.61,62.66325656]
[1763955853575,0.1614714,133.62,133.61,61.94325656]
[1763955855572,0.1614714,133.62,133.61,62.66325656]
[1763955855991,0.30058067,133.62,133.61,62.66325656]
[1763955856502,0.13910927,133.62,133.61,67.15730263]
[1763955857594,0.13910927,133.62,133.61,66.43730263]
[1763955857799,0.13910927,133.62,133.61,61.94325656]
[1763955858603,0.83910927,133.62,133.61,61.94325656]
[1763955860311,0.13910927,133.62,133.61,67.12730263]
[1763955860683,0.13910927,133.62,133.61,65.50660836]
[1763955860910,0.13910927,133.62,133.61,61.94325656]
[1763955861178,0.13910927,133.62,133.61,62.63325656]
[1763955865015,0.13910927,133.62,133.61,65.50660836]
[1763955868530,0.13910927,133.62,133.61,62.63325656]
[1763955868717,0.13910927,133.62,133.61,65.50660836]
[1763955868898,0.15049306,133.63,133.62,61.80414729]
[1763955869088,0.15049306,133.63,133.62,65.36749909]
[1763955873548,0.15049306,133.63,133.62,66.11589004]
[1763955873835,0.15049306,133.63,133.62,175.59979963]
[1763955874016,0.15049306,133.63,133.62,174.85140868]
[1763955875330,0.15049306,133.63,133.62,167.36749909]
[1763955875904,0.99615367,133.63,133.62,61.80414729]
[1763955876109,0.99615367,133.63,133.59,64.77749909]
[1763955876311,0.7,133.62,133.59,64.77749909]
[1763955876720,0.7,133.62,133.59,65.46749909]
[1763955877828,0.7,133.62,133.59,64.77749909]
[1763955877999,0.7,133.62,133.59,65.46749909]
[1763955879106,0.7,133.62,133.59,64.77749909]
[1763955879429,0.7,133.62,133.59,65.46749909]
[1763955879611,0.14566061,133.63,133.61,2.8733518]
[1763955879920,0.84566061,133.63,133.61,2.8733518]
[1763955880129,0.84566061,133.63,133.6,2.8733518]
[1763955881334,0.14351197,133.64,133.62,2.8733518]
[1763955881628,0.14351197,133.64,133.63,11.79503629]
[1763955883728,0.14351197,133.64,133.63,22.43264675]
[1763955884022,0.14351197,133.64,133.63,4.31168675]
[1763955888838,0.14351197,133.64,133.63,1.43833495]
[1763955889036,0.14351197,133.64,133.63,0.74833495]
[1763955889235,0.14351197,133.64,133.63,2.8733518]
[1763955889437,0.14351197,133.64,133.63,3.5733518]
[1763955891338,0.14351197,133.64,133.63,11.05670134]
[1763955892221,0.14351197,133.64,133.63,3.5733518]
[1763955894056,0.14351197,133.64,133.63,2.8733518]
[1763955894261,0.14351197,133.64,133.63,3.5733518]
[1763955894750,0.15198023,133.65,133.63,14.37670134]
[1763955894958,0.15198023,133.65,133.64,4.32163075]
[1763955895957,0.2898517,133.65,133.64,4.32163075]
[1763955896419,0.2898517,133.65,133.64,11.80442033]
[1763955896624,0.13787147,133.65,133.64,11.80442033]
[1763955896853,0.15992859,133.66,133.64,11.80442033]
[1763955897147,0.15992859,133.66,133.65,2.8733518]
[1763955897584,0.16314713,133.68,133.67,18.12096]
[1763955897738,0.14765562,133.69,133.67,27.93577461]
[1763955898071,0.14765562,133.69,133.68,15.066759]
[1763955898244,0.14765562,133.69,133.68,3.5733518]
[1763955899027,0.14765562,133.69,133.68,11.05390236]
[1763955899253,0.14765562,133.69,133.68,22.54730956]
[1763955900867,0.15343017,133.72,133.69,93.4643118]
[1763955901057,0.15343017,133.72,133.7,6.92129495]
[1763955901378,0.15343017,133.72,133.71,20.9943118]
[1763955901547,0.15343017,133.72,133.71,21.6943118]
[1763955902273,0.15343017,133.72,133.71,2.8733518]
[1763955902476,0.81343017,133.72,133.68,28.90151056]
[1763955902781,0.81343017,133.72,133.71,2.8733518]
[1763955903556,0.81343017,133.72,133.68,41.09491776]
[1763955903748,0.81343017,133.72,133.71,2.8733518]
[1763955904272,0.81343017,133.72,133.7,2.8733518]
[1763955906562,0.15343017,133.72,133.71,2.8733518]
[1763955907061,0.15343017,133.72,133.71,20.9943118]
[1763955908459,0.15343017,133.72,133.71,21.6943118]
[1763955909154,0.15343017,133.72,133.71,29.17318398]
[1763955910879,0.15343017,133.72,133.71,21.6943118]
[1763955911078,0.15343017,133.72,133.71,29.17318398]
[1763955913658,0.15508594,133.73,133.71,79.17318398]
[1763955913858,0.15508594,133.73,133.72,25.74214308]
[1763955914550,0.15508594,133.73,133.72,24.9943118]
[1763955914979,0.15508594,133.73,133.72,2.8733518]
[1763955915176,0.15508594,133.73,133.72,3.5733518]
[1763955915360,0.15508594,133.73,133.72,22.44214308]
[1763955915884,0.30971439,133.73,133.72,22.44214308]
[1763955916057,0.30971439,133.73,133.72,4.32118308]
[1763955916678,0.15462845,133.73,133.72,4.32118308]
[1763955916861,0.15462845,133.73,133.72,11.79949597]
[1763955917262,0.15462845,133.73,133.72,15.09949597]
[1763955918596,0.15462845,133.73,133.72,33.22045597]
[1763955919758,0.14022886,133.74,133.72,33.22045597]
[1763955920059,0.14022886,133.74,133.73,3.5633518]
[1763955920379,0.35973562,133.75,133.73,74.68045426]
[1763955920562,0.35973562,133.75,133.74,7.61107125]
[1763955921466,0.35973562,133.75,133.74,15.0882658]
[1763955921854,0.36389089,133.76,133.75,64.366759]
[1763955922062,0.14582597,133.78,133.77,18.12096]
[1763955922382,0.14582597,133.78,133.77,25.04186356]
[1763955922585,0.14582597,133.78,133.77,26.64526029]
[1763955922892,0.14582597,133.78,133.77,27.33526029]
[1763955923072,0.14582597,133.78,133.77,4.04755176]
[1763955923271,0.80582597,133.78,133.77,22.59770853]
[1763955923474,0.80582597,133.78,133.77,4.47674853]
[1763955927395,0.80582597,133.78,133.75,4.47674853]
[1763955927592,0.80582597,133.78,133.76,4.47674853]
[1763955928282,0.80582597,133.78,133.77,4.47674853]
[1763955932597,0.14582597,133.78,133.77,4.47674853]
[1763955932904,0.80582597,133.78,133.77,4.47674853]
[1763955933208,0.14582597,133.78,133.77,22.59770853]
[1763955935288,0.80582597,133.78,133.76,4.47674853]
[1763955935607,0.14582597,133.78,133.77,4.47674853]
[1763955935797,0.14582597,133.78,133.77,22.59770853]
[1763955936004,0.28819762,133.78,133.77,22.59770853]
[1763955936510,0.14237165,133.78,133.77,22.59770853]
[1763955936900,0.14237165,133.78,133.77,30.7632262]
[1763955937482,0.14207087,133.79,133.77,80.7632262]
[1763955937676,0.14207087,133.79,133.78,5.91424441]
[1763955937903,0.15608321,133.8,133.78,5.91424441]
[1763955938106,0.15608321,133.8,133.79,26.58770853]
[1763955939510,0.15608321,133.8,133.79,34.0621087]
[1763955944814,0.83608321,133.8,133.79,18.12096]
[1763955945118,0.83608321,133.8,133.79,22.59770853]
[1763955945306,0.15608321,133.8,133.79,22.59770853]
[1763955945506,0.15608321,133.8,133.79,23.31770853]
[1763955945885,0.15608321,133.8,133.79,22.59770853]
[1763955946088,0.15608321,133.8,133.79,30.0721087]
[1763955947615,0.15608321,133.8,133.79,30.7421087]
[1763955949221,0.15670968,133.81,133.79,30.7421087]
[1763955949413,0.15670968,133.81,133.8,9.19413268]
[1763955950700,0.15670968,133.81,133.8,16.66797423]
[1763955951510,0.15670968,133.81,133.8,15.99797423]
[1763955951708,0.15670968,133.81,133.8,16.66797423]
[1763955951914,0.15670968,133.81,133.8,15.99797423]
[1763955952120,0.15670968,133.81,133.8,8.52413268]
[1763955952612,0.15670968,133.81,133.8,5.22413268]
[1763955953008,0.15670968,133.81,133.8,12.69797423]
[1763955955905,0.29529257,133.81,133.8,5.22413268]
[1763955956107,0.29529257,133.81,133.8,12.69797423]
[1763955956540,0.13858289,133.81,133.8,12.69797423]
[1763955957332,0.13858289,133.81,133.8,13.36797423]
[1763955957637,0.13858289,133.81,133.8,12.69797423]
[1763955959140,0.13858289,133.81,133.8,13.36797423]
[1763955960750,1.04865359,133.84,133.82,90.61096]
[1763955960751,0.34865359,133.84,133.82,90.61096]
[1763955960927,0.1427973,133.85,133.84,18.12096]
[1763955961120,0.1427973,133.85,133.84,35.21606495]
[1763955961444,0.35158062,133.88,133.84,40.80122903]
[1763955961626,0.35158062,133.88,133.85,14.77901757]
[1763955962948,1.04513034,133.87,133.85,14.10901757]
[1763955963143,0.34513034,133.87,133.85,21.58006725]
[1763955963530,0.34513034,133.87,133.85,22.25006725]
[1763955963920,0.34513034,133.87,133.86,28.85287261]
[1763955965129,0.34513034,133.87,133.86,36.32336416]
[1763955965443,0.35158062,133.88,133.86,58.81336416]
[1763955965643,0.35158062,133.88,133.87,32.89986596]
[1763955965943,0.35158062,133.88,133.87,32.22986596]
[1763955966322,0.35158062,133.88,133.87,54.71986596]
[1763955967229,0.35158062,133.88,133.87,62.85979947]
[1763955969552,0.3356495,133.89,133.87,62.85979947]
[1763955969553,0.3356495,133.89,133.87,44.73883947]
[1763955969754,0.1606003,133.9,133.89,61.7643505]
[1763955969932,0.1606003,133.9,133.89,68.09639634]
[1763955970138,0.8606003,133.9,133.89,89.94722311]
[1763955970647,0.8606003,133.9,133.89,191.94722311]
[1763955971750,0.8606003,133.9,133.89,173.82626311]
[1763955972265,0.8606003,133.9,133.89,168.24109903]
[1763955974447,0.8606003,133.9,133.89,61.7643505]
[1763955975627,0.8606003,133.9,133.89,66.24109903]
[1763955976027,0.99716383,133.9,133.89,66.24109903]
[1763955976629,0.83656353,133.9,133.89,61.7643505]
[1763955979541,0.83656353,133.9,133.89,66.24109903]
[1763955979849,0.13656353,133.9,133.89,66.24109903]
[1763955980242,0.79656353,133.9,133.89,66.24109903]
[1763955981235,0.13656353,133.9,133.89,66.24109903]
[1763955981438,0.13911504,133.91,133.9,61.62778697]
[1763955981653,0.13911504,133.91,133.9,175.57279539]
[1763955982162,0.13911504,133.91,133.9,176.27279539]
[1763955982661,0.13911504,133.91,133.9,174.65599462]
[1763955985758,0.13911504,133.91,133.9,173.95599462]
[1763955985943,0.79911504,133.91,133.9,166.48773473]
[1763955986146,0.79911504,133.91,133.9,196.44599462]
[1763955986471,0.79911504,133.91,133.9,173.95599462]
[1763955987655,0.15733861,133.93,133.92,60.48140679]
[1763955989555,0.81733861,133.93,133.92,60.48140679]
[1763955990781,0.81733861,133.93,133.92,63.34135455]
[1763955990980,0.81733861,133.93,133.92,60.48140679]
[1763955991277,3.67728637,133.93,133.89,60.48140679]
[1763955991481,2.85994776,133.92,133.89,60.48140679]
[1763955991657,3.51994776,133.92,133.89,60.48140679]
[1763955991859,0.66,133.91,133.89,60.48140679]
[1763955992074,0.81733861,133.93,133.9,3.55994776]
[1763955992268,0.81733861,133.93,133.91,2.85994776]
[1763955992574,0.81733861,133.93,133.92,2.85994776]
[1763955992966,0.81733861,133.93,133.9,2.85994776]
[1763955993578,0.81733861,133.93,133.91,2.85994776]
[1763955995976,0.13835846,133.92,133.9,2.85994776]
[1763955996449,0.79835846,133.92,133.9,165.34135455]
[1763955996882,0.13835846,133.92,133.91,2.85994776]
[1763955997068,0.79835846,133.92,133.9,162.48140679]
[1763955997256,0.79835846,133.92,133.9,165.34135455]
[1763955998060,0.13835846,133.92,133.9,165.34135455]
[1763955998267,0.79835846,133.92,133.9,165.34135455]
[1763955999668,3.65830622,133.92,133.87,60.48140679]
[1763955999871,3.51994776,133.91,133.87,60.48140679]
[1763956000071,0.66,133.91,133.87,63.34135455]
[1763956000280,0.66,133.9,133.87,63.34135455]
[1763956001984,0.79835846,133.92,133.88,2.85994776]
[1763956002201,0.66,133.91,133.87,63.34135455]
[1763956002496,3.51994776,133.91,133.87,60.48140679]
[1763956002858,0.66,133.9,133.87,60.48140679]
[1763956003580,0.66,133.9,133.87,63.34135455]
[1763956005669,0.66,133.9,133.87,60.48140679]
[1763956008273,0.67,133.9,133.87,63.34135455]
[1763956010495,0.67,133.9,133.87,60.48140679]
[1763956010698,3.52994776,133.9,133.87,60.48140679]
[1763956010869,2.85994776,133.88,133.85,78.60236679]
[1763956011205,0.67,133.87,133.85,78.60236679]
[1763956011376,3.52994776,133.87,133.83,60.48140679]
[1763956011888,0.67,133.86,133.83,78.60236679]
[1763956012188,0.67,133.86,133.84,5.58934598]
[1763956012391,0.67,133.86,133.85,5.58934598]
[1763956013268,2.85994776,133.9,133.85,69.59070053]
[1763956013471,3.52994776,133.9,133.86,5.58934598]
[1763956013669,0.67,133.89,133.87,5.58934598]
[1763956013884,0.67,133.89,133.88,5.58934598]
[1763956015390,2.85994776,133.91,133.88,5.58934598]
[1763956015570,0.67,133.9,133.89,5.58934598]
[1763956015990,0.8204532,133.9,133.89,5.58934598]
[1763956020204,0.8204532,133.9,133.89,66.07075277]
[1763956020401,0.8204532,133.9,133.89,60.48140679]
[1763956020604,3.68040096,133.9,133.89,66.06351247]
[1763956022707,0.8204532,133.9,133.89,66.06351247]
[1763956023314,3.68040096,133.9,133.89,66.06351247]
[1763956025612,7.82450394,133.9,133.89,5.58210568]
[1763956026219,6.98040096,133.9,133.89,5.58210568]
[1763956026709,0.8204532,133.9,133.89,5.58210568]
[1763956027716,3.68040096,133.9,133.89,5.58210568]
[1763956028015,21.80136096,133.9,133.89,5.58210568]
[1763956029012,3.68040096,133.9,133.89,5.58210568]
[1763956029221,0.8204532,133.9,133.89,5.58210568]
[1763956029816,0.1504532,133.9,133.89,6.24210568]
[1763956030106,0.1504532,133.9,133.89,17.31775288]
[1763956030314,0.15695146,133.91,133.89,17.31775288]
[1763956030485,0.15695146,133.91,133.9,9.10205344]
[1763956031609,0.15695146,133.91,133.9,16.57031333]
[1763956032614,0.15695146,133.91,133.9,9.10205344]
[1763956033600,0.15695146,133.91,133.9,5.58210568]
[1763956035935,0.31772642,133.91,133.9,8.44205344]
[1763956036232,3.84767418,133.91,133.9,5.58210568]
[1763956036401,0.98772642,133.91,133.9,5.58210568]
[1763956036603,0.83077496,133.91,133.87,3.51994776]
[1763956037024,0.67,133.9,133.87,3.51994776]
[1763956037811,0.67,133.9,133.86,2.85994776]
[1763956038127,2.85994776,133.88,133.83,3.51994776]
[1763956038517,0.67,133.87,133.84,0.66]
[1763956040533,0.67,133.87,133.83,2.85994776]
[1763956040718,2.85994776,133.88,133.84,0.66]
[1763956040915,0.67,133.87,133.84,0.66]
[1763956042306,20.98090776,133.89,133.85,2.85994776]
[1763956042514,0.67,133.88,133.85,3.51994776]
[1763956042920,0.67,133.88,133.84,2.85994776]
[1763956043120,0.67,133.88,133.84,3.51994776]
[1763956043937,0.67,133.88,133.84,65.61994776]
[1763956044527,0.67,133.88,133.84,67.23437095]
[1763956048145,0.67,133.88,133.84,5.13437095]
[1763956050749,0.67,133.88,133.84,0.66]
[1763956050950,4.47437095,133.86,133.8,62.1]
[1763956051250,4.47437095,133.86,133.81,5.13437095]
[1763956051428,0.67,133.85,133.81,5.13437095]
[1763956051626,0.67,133.85,133.82,0.66]
[1763956053804,23.26533095,133.85,133.8,62.1]
[1763956053932,4.47437095,133.84,133.8,0.66]
[1763956054125,5.14437095,133.84,133.79,67.23437095]
[1763956054342,0.67,133.83,133.79,67.23437095]
[1763956054530,5.14437095,133.83,133.79,0.66]
[1763956054734,8.44437095,133.83,133.79,0.66]
[1763956054936,0.67,133.82,133.79,0.66]
[1763956055654,0.67,133.82,133.75,4.57437095]
[1763956055655,4.47437095,133.81,133.75,4.57437095]
[1763956055857,4.47437095,133.78,133.75,0.1]
[1763956056283,5.14437095,133.78,133.75,0.1]
[1763956056560,0.67,133.78,133.75,0.1]
[1763956057575,3.3,133.79,133.75,5.23437095]
[1763956057758,0.67,133.78,133.75,4.57437095]
[1763956057958,0.67,133.78,133.75,0.76]
[1763956058585,0.67,133.78,133.75,5.23437095]
[1763956061861,0.67,133.78,133.75,67.33437095]
[1763956063276,3.3,133.79,133.76,0.66]
[1763956063454,3.3,133.79,133.77,4.47437095]
[1763956063654,3.3,133.79,133.76,5.13437095]
[1763956064068,3.97,133.79,133.76,5.13437095]
[1763956066880,3.3,133.79,133.76,0.66]
[1763956067057,3.3,133.79,133.76,5.13437095]
[1763956067257,4.01,133.79,133.76,5.13437095]
[1763956067864,3.3,133.79,133.77,0.71]
[1763956068062,0.71,133.78,133.75,66.67437095]
[1763956068265,0.71,133.78,133.75,62.91]
[1763956068565,8.48437095,133.79,133.75,62.91]
[1763956069857,4.01,133.79,133.76,0.71]
[1763956070258,4.01,133.79,133.75,67.38437095]
[1763956070867,3.3,133.79,133.75,67.38437095]
[1763956071057,4.01,133.79,133.75,66.67437095]
[1763956071257,4.01,133.79,133.76,0.71]
[1763956071686,0.71,133.78,133.75,62.2]
[1763956071982,4.47437095,133.76,133.75,0.1]
[1763956072355,5.18437095,133.76,133.75,0.1]
[1763956072772,0.71,133.76,133.75,0.1]
[1763956072979,5.18437095,133.76,133.75,0.1]
[1763956073659,18.83096,133.77,133.75,0.1]
[1763956073859,0.71,133.77,133.75,0.1]
[1763956074669,18.83096,133.78,133.75,0.81]
[1763956074986,0.71,133.77,133.75,0.1]
[1763956075369,18.83096,133.78,133.75,0.81]
[1763956075585,3.3,133.79,133.75,5.28437095]
[1763956075881,3.3,133.79,133.76,4.47437095]
[1763956076086,0.13771647,133.77,133.76,5.18437095]
[1763956079763,0.13771647,133.77,133.76,67.28437095]
[1763956080274,0.13771647,133.77,133.76,5.18437095]
[1763956080966,0.13771647,133.77,133.76,12.6604475]
[1763956081578,0.13771647,133.77,133.76,5.18437095]
[1763956081770,0.13771647,133.77,133.76,4.47437095]
[1763956082087,0.13771647,133.77,133.76,5.18437095]
[1763956083880,0.13771647,133.77,133.76,0.71]
[1763956084193,0.13771647,133.77,133.76,5.18437095]
[1763956086984,0.13771647,133.77,133.76,67.28437095]
[1763956087295,0.13771647,133.77,133.76,74.7604475]
[1763956091494,0.13771647,133.77,133.76,62.81]
[1763956091697,0.13771647,133.77,133.76,67.28437095]
[1763956091896,0.13771647,133.77,133.76,74.7604475]
[1763956093104,0.13771647,133.77,133.76,93.62901515]
[1763956093605,0.13771647,133.77,133.76,195.62901515]
[1763956093784,0.13771647,133.77,133.76,194.8814075]
[1763956096005,0.28128249,133.77,133.76,194.8814075]
[1763956096608,0.14356602,133.77,133.76,194.8814075]
[1763956097812,0.14356602,133.77,133.76,85.40533095]
[1763956098006,0.14356602,133.77,133.76,62.77]
[1763956098885,0.14356602,133.77,133.76,67.24437095]
[1763956099197,0.14356602,133.77,133.76,67.9919786]
[1763956100199,0.14356602,133.77,133.76,75.46805515]
[1763956102910,0.14356602,133.77,133.76,79.9424261]